fUSD/lending_fUSD_20250414
["ID","MTS","AMOUNT","RATE_DAILY","PERIOD"]
[357932130,1744591839025,-459.61762194,0.0002,2]
[357932131,1744591839036,-6156.45188761,0.0002,2]
[357932133,1744591839047,-9186.50881033,0.0002,2]
[357932134,1744591839058,-1037.35002977,0.0002,2]
[357932135,1744591839069,-5873.54060081,0.0002,2]
[357932136,1744591839084,-4108.3547939,0.0002,2]
[357932137,1744591839095,-125511.5173053,0.0002,2]
[357932138,1744591839112,-20025.22853405,0.0002,2]
[357932139,1744591839130,-218259.32205775,0.0002,2]
[357932140,1744591839142,-1296.4560435,0.0002,2]
[357932141,1744591839155,-775.44461026,0.0002,2]
[357932142,1744591839169,-42427.49999998,0.0002,2]
[357932144,1744591840380,-302.57016797,0.00019178,2]
[357932145,1744591840400,-197.42983203,0.00019178,2]
[357932146,1744591840413,-173.5,0.00019452,2]
[357932147,1744591840427,-2022.52861178,0.000199,2]
[357932148,1744591840442,-770.90772586,0.0002,2]
[357932149,1744591840456,-1514.18822812,0.0002,2]
[357932150,1744591840500,-522.91188455,0.0002,2]
[357932151,1744591840555,-22510.72011162,0.0002,2]
[357932152,1744591840568,-52589.27988838,0.0002,2]
[357932153,1744591840611,-2256.17336082,0.0002,2]
[357932163,1744591843348,-584.0,0.0002,2]
[357932164,1744591843361,-537.80574648,0.0002,2]
[357932174,1744591845728,-8313.35309977,0.0002,2]
[357932178,1744591846307,-168.04109296,0.000199,2]
[357932179,1744591846317,-450.52301386,0.000199,2]
[357932180,1744591846416,-549.47698614,0.000199,2]
[357932181,1744591846425,-450.52301386,0.0002,2]
[357932182,1744591846438,-387.02639957,0.0002,2]
[357932183,1744591846470,-35301.41557748,0.0002,2]
[357932185,1744591879295,3350.0,0.000221,30]
[357932186,1744591879325,36983.897976,0.000221,30]
[357932187,1744591905430,5558.0,0.000153,5]
[357932188,1744591949856,183.0,0.000173,2]
[357932189,1744592106176,1024.6,0.00017157,2]
[357932191,1744592761015,155.0,0.00017,2]
[357932192,1744592792918,-152.58,0.0001842,2]
[357932193,1744592819611,3349.99999998,0.000221,30]
[357932194,1744592832995,-249.26755412,0.0001842,2]
[357932195,1744592841932,200.88257412,0.0001989,4]
[357932196,1744592870582,-181.67238775,0.0001842,2]
[357932197,1744593002563,2000.0,0.0002,4]
[357932201,1744593031493,-161.22,0.00018414,2]
[357932202,1744593031503,-24.62907625,0.0001842,2]
[357932203,1744593031514,-250.0,0.00018513,2]
[357932204,1744593031524,-9.64281588,0.00018513,2]
[357932205,1744593031536,-143.31718412,0.00018513,2]
[357932206,1744593031546,-150.0,0.00018605,2]
[357932207,1744593031555,-173.56,0.00018606,2]
[357932208,1744593031565,-300.0,0.00018734,2]
[357932209,1744593031575,-300.0,0.00018734,2]
[357932210,1744593031584,-3994.28343406,0.00018735,2]
[357932211,1744593031596,-6358.03176766,0.00018735,2]
[357932212,1744593031609,-298.695,0.00018735,2]
[357932213,1744593031622,-351.56255605,0.00018735,2]
[357932214,1744593031633,-2456.36177548,0.00018735,2]
[357932215,1744593031645,-893.15546675,0.00018735,2]
[357932216,1744593031655,-3615.0,0.0001877,2]
[357932217,1744593031664,-356.17,0.00018792,2]
[357932218,1744593031675,-187.41373131,0.00018861,2]
[357932219,1744593031684,-500.0,0.00018883,2]
[357932220,1744593031694,-500.0,0.00018883,2]
[357932221,1744593031704,-500.0,0.00018883,2]
[357932222,1744593031713,-488.06140882,0.00018883,2]
[357932223,1744593031725,-11.93859118,0.00018883,2]
[357932224,1744593031734,-315.14148816,0.00018976,2]
[357932225,1744593031746,-912.22240164,0.00018976,2]
[357932226,1744593031757,-504.42,0.00018976,2]
[357932227,1744593031768,-346.3061102,0.00018976,2]
[357932228,1744593031777,-250.0,0.00018978,2]
[357932229,1744593031787,-250.0,0.00019,2]
[357932230,1744593031796,-250.0,0.00019,2]
[357932231,1744593031806,-177.0,0.00019014,2]
[357932232,1744593031815,-636.40368603,0.00019043,2]
[357932234,1744593031831,-256.61108068,0.00019043,2]
[357932236,1744593031842,-106.98523329,0.00019043,2]
[357932238,1744593031852,-164.52,0.00019045,2]
[357932240,1744593031862,-183.25,0.0001913,2]
[357932242,1744593031874,-581.34790231,0.00019168,2]
[357932244,1744593031884,-367.0,0.00019177,2]
[357932246,1744593031893,-500.0,0.00019178,2]
[357932248,1744593031902,-647.17494443,0.00019178,2]
[357932250,1744593031913,-516.38679226,0.00019178,2]
[357932252,1744593031922,-510.02215663,0.00019178,2]
[357932254,1744593031931,-378.96767975,0.00019178,2]
[357932256,1744593031943,-121.03232025,0.00019178,2]
[357932257,1744593031953,-500.0,0.00019178,2]
[357932258,1744593031962,-537.12149217,0.00019178,2]
[357932259,1744593031971,-241.77809115,0.00019178,2]
[357932260,1744593031983,-258.22190885,0.00019178,2]
[357932261,1744593031992,-441.77809115,0.00019178,2]
[357932262,1744593032004,-58.22190885,0.00019178,2]
[357932263,1744593032013,-250.0,0.00019178,2]
[357932264,1744593032022,-500.0,0.00019178,2]
[357932265,1744593032031,-500.0,0.00019178,2]
[357932266,1744593032041,-500.0,0.00019178,2]
[357932267,1744593032050,-169.94259689,0.00019178,2]
[357932268,1744593032062,-330.05740311,0.00019178,2]
[357932269,1744593032071,-500.0,0.00019178,2]
[357932270,1744593032080,-400.0,0.00019178,2]
[357932271,1744593032090,-511.49,0.00019178,2]
[357932272,1744593032099,-337.00232555,0.00019178,2]
[357932273,1744593032109,-2098.08,0.00019178,2]
[357932274,1744593032120,-464.73013003,0.00019178,2]
[357932275,1744593032147,-35.26986997,0.00019178,2]
[357932276,1744593032162,-549.71600394,0.00019178,2]
[357932277,1744593032171,-3.18342639,0.00019178,2]
[357932278,1744593032183,-322.9200006,0.00019178,2]
[357932279,1744593032195,-198.62807131,0.00019178,2]
[357932280,1744593032205,-500.0,0.00019178,2]
[357932281,1744593032214,-500.0,0.00019178,2]
[357932282,1744593032223,-500.0,0.00019178,2]
[357932283,1744593032232,-500.0,0.00019178,2]
[357932284,1744593032241,-500.0,0.00019178,2]
[357932285,1744593032250,-500.0,0.00019178,2]
[357932286,1744593032259,-509.6814265,0.00019178,2]
[357932287,1744593032269,-542.26,0.00019178,2]
[357932288,1744593032278,-500.0,0.00019178,2]
[357932289,1744593032290,-500.0,0.00019178,2]
[357932290,1744593032300,-500.0,0.00019178,2]
[357932291,1744593032309,-500.0,0.00019178,2]
[357932292,1744593032318,-628.27,0.00019178,2]
[357932293,1744593032327,-500.0,0.00019178,2]
[357932294,1744593032336,-323.83076971,0.00019178,2]
[357932295,1744593032348,-176.16923029,0.00019178,2]
[357932296,1744593032357,-419.22131163,0.00019178,2]
[357932297,1744593032369,-80.77868837,0.00019178,2]
[357932298,1744593032379,-500.0,0.00019178,2]
[357932299,1744593032388,-500.0,0.00019178,2]
[357932300,1744593032399,-3358.95,0.00019178,2]
[357932301,1744593032408,-433.30655008,0.00019178,2]
[357932302,1744593032420,-66.69344992,0.00019178,2]
[357932303,1744593032430,-500.0,0.00019178,2]
[357932304,1744593032443,-500.0,0.00019178,2]
[357932305,1744593032452,-500.0,0.00019178,2]
[357932306,1744593032461,-500.0,0.00019178,2]
[357932307,1744593032471,-500.0,0.00019178,2]
[357932308,1744593032481,-474.05434621,0.00019178,2]
[357932311,1744593037572,-25.94565379,0.00019178,2]
[357932312,1744593037583,-635.69,0.00019178,2]
[357932313,1744593037594,-500.0,0.00019178,2]
[357932314,1744593037603,-313.40714447,0.00019178,2]
[357932315,1744593037632,-186.59285553,0.00019178,2]
[357932316,1744593037642,-500.0,0.00019178,2]
[357932317,1744593037652,-500.0,0.00019178,2]
[357932318,1744593037662,-500.0,0.00019178,2]
[357932319,1744593037671,-500.0,0.00019178,2]
[357932320,1744593037682,-500.0,0.00019178,2]
[357932321,1744593037692,-500.0,0.00019178,2]
[357932322,1744593037701,-239.58298348,0.00019178,2]
[357932323,1744593037713,-260.41701652,0.00019178,2]
[357932324,1744593037722,-468.2281088,0.00019178,2]
[357932325,1744593037734,-31.7718912,0.00019178,2]
[357932326,1744593037744,-500.0,0.00019178,2]
[357932327,1744593037754,-500.0,0.00019178,2]
[357932328,1744593037764,-500.0,0.00019178,2]
[357932329,1744593037774,-500.0,0.00019178,2]
[357932330,1744593037783,-500.0,0.00019178,2]
[357932331,1744593037793,-500.0,0.00019178,2]
[357932332,1744593037803,-577.78,0.00019178,2]
[357932333,1744593037812,-500.0,0.00019178,2]
[357932334,1744593037822,-223.73131287,0.00019178,2]
[357932335,1744593037831,-607.50052637,0.00019178,2]
[357932336,1744593037840,-500.0,0.00019178,2]
[357932337,1744593037850,-544.11267234,0.00019178,2]
[357932338,1744593037861,-618.49143888,0.00019178,2]
[357932339,1744593037872,-237.84380385,0.00019178,2]
[357932340,1744593037882,-500.0,0.00019178,2]
[357932341,1744593037892,-500.0,0.00019178,2]
[357932342,1744593037902,-567.34974317,0.00019178,2]
[357932343,1744593037911,-500.0,0.00019178,2]
[357932344,1744593037921,-509.35314567,0.00019178,2]
[357932345,1744593037930,-500.0,0.00019178,2]
[357932346,1744593037940,-500.0,0.00019178,2]
[357932347,1744593037949,-500.0,0.00019178,2]
[357932348,1744593037959,-533.07924669,0.00019178,2]
[357932349,1744593037968,-500.0,0.00019178,2]
[357932350,1744593037978,-500.0,0.00019178,2]
[357932351,1744593037987,-500.0,0.00019178,2]
[357932352,1744593037998,-604.69,0.00019178,2]
[357932353,1744593038008,-486.83,0.00019339,2]
[357932354,1744593038018,-9999.99,0.00019339,2]
[357932355,1744593038028,-1557.9,0.00019339,2]
[357932356,1744593038037,-216.6286619,0.00019399,2]
[357932358,1744593038047,-1024.6,0.00019421,2]
[357932360,1744593038056,-250.03,0.00019452,2]
[357932362,1744593038066,-334.39,0.00019452,2]
[357932363,1744593038076,-330.21,0.00019452,2]
[357932364,1744593038086,-573.94939894,0.00019452,2]
[357932365,1744593038096,-500.0,0.00019452,2]
[357932366,1744593038106,-2098.08,0.00019452,2]
[357932367,1744593038115,-500.0,0.00019452,2]
[357932368,1744593038127,-500.0,0.00019452,2]
[357932369,1744593038137,-639.11,0.00019452,2]
[357932370,1744593038146,-500.0,0.00019452,2]
[357932371,1744593038156,-593.80782529,0.00019452,2]
[357932372,1744593038165,-577.0429061,0.00019452,2]
[357932373,1744593038176,-500.0,0.00019452,2]
[357932374,1744593038185,-500.0,0.00019452,2]
[357932375,1744593038195,-500.0,0.00019452,2]
[357932376,1744593038204,-201.60885254,0.00019452,2]
[357932377,1744593038214,-500.0,0.00019452,2]
[357932378,1744593038224,-3358.95,0.00019452,2]
[357932379,1744593038235,-500.0,0.00019452,2]
[357932380,1744593038244,-500.0,0.00019452,2]
[357932381,1744593038254,-191.52,0.00019452,2]
[357932382,1744593038263,-500.0,0.00019452,2]
[357932383,1744593038273,-500.0,0.00019452,2]
[357932384,1744593038283,-500.0,0.00019452,2]
[357932385,1744593038293,-500.0,0.00019452,2]
[357932386,1744593038303,-224.8,0.00019452,2]
[357932387,1744593038313,-500.0,0.00019452,2]
[357932388,1744593038323,-271.31,0.00019452,2]
[357932389,1744593038333,-500.0,0.00019452,2]
[357932390,1744593038342,-500.0,0.00019452,2]
[357932391,1744593038352,-500.0,0.00019452,2]
[357932392,1744593038362,-500.0,0.00019452,2]
[357932393,1744593038374,-500.0,0.00019452,2]
[357932394,1744593038383,-500.0,0.00019452,2]
[357932395,1744593038393,-453.01,0.00019452,2]
[357932396,1744593038402,-388.07,0.00019452,2]
[357932397,1744593038412,-500.0,0.00019452,2]
[357932398,1744593038422,-500.0,0.00019452,2]
[357932399,1744593038432,-500.0,0.00019452,2]
[357932400,1744593038444,-329.01,0.00019452,2]
[357932401,1744593038455,-500.0,0.00019452,2]
[357932402,1744593038468,-577.78,0.00019452,2]
[357932403,1744593038482,-500.0,0.00019452,2]
[357932404,1744593038493,-508.10655589,0.00019452,2]
[357932405,1744593038504,-468.33,0.00019452,2]
[357932406,1744593038514,-500.0,0.00019452,2]
[357932407,1744593038524,-500.0,0.00019452,2]
[357932408,1744593038534,-414.85,0.00019452,2]
[357932409,1744593038543,-300.55,0.00019452,2]
[357932410,1744593038553,-500.0,0.00019452,2]
[357932411,1744593038562,-164.52,0.00019673,2]
[357932412,1744593038571,-3998.24003996,0.00019691,2]
[357932413,1744593038582,-4311.81305965,0.00019691,2]
[357932414,1744593038591,-131979.39183799,0.00019692,2]
[357932415,1744593038604,-957.69999998,0.00019692,2]
[357932416,1744593038615,-5933.55,0.00019692,2]
[357932417,1744593038628,-10272.5287,0.00019692,2]
[357932418,1744593038640,-14450.025,0.00019692,2]
[357932419,1744593038651,-35540.7,0.00019692,2]
[357932420,1744593038664,-38036.05797199,0.00019692,2]
[357932421,1744593038674,-4311.81305965,0.00019692,2]
[357932422,1744593038683,-245.41137197,0.00019694,2]
[357932423,1744593038694,-227.64001784,0.00019694,2]
[357932424,1744593038703,-41404.07757855,0.00019695,2]
[357932425,1744593038714,-363.240668,0.00019695,2]
[357932426,1744593038918,-9061.49703077,0.00019695,2]
[357932427,1744593038930,-2137.3229705,0.00019695,2]
[357932428,1744593038942,-603.465158,0.00019695,2]
[357932429,1744593038954,-848.6840014,0.00019695,2]
[357932430,1744593038965,-1392.68663958,0.00019695,2]
[357932431,1744593038977,-1900.86494225,0.00019695,2]
[357932432,1744593038989,-125511.5173053,0.00019695,2]
[357932433,1744593039001,-3653.83319092,0.00019695,2]
[357932438,1744593039487,-500.0,0.00019178,2]
[357932439,1744593039497,-303.24021193,0.00019695,2]
[357932440,1744593039545,-18587.25043584,0.00019695,2]
[357932441,1744593039557,-31402.27337692,0.00019695,2]
[357932442,1744593039566,-4059.4031382,0.000197,2]
[357932443,1744593039576,-3998.24003996,0.00019703,2]
[357932444,1744593039585,-4311.81305965,0.00019711,2]
[357932445,1744593039595,-237169.95350996,0.00019725,2]
[357932446,1744593039604,-500.0,0.00019726,2]
[357932447,1744593039615,-2098.08,0.00019726,2]
[357932448,1744593039625,-500.0,0.00019726,2]
[357932449,1744593039635,-500.0,0.00019726,2]
[357932450,1744593039644,-500.0,0.00019726,2]
[357932451,1744593039655,-643.29,0.00019726,2]
[357932452,1744593039665,-507.31,0.00019726,2]
[357932453,1744593039675,-500.0,0.00019726,2]
[357932454,1744593039685,-3358.95,0.00019726,2]
[357932455,1744593039695,-500.0,0.00019726,2]
[357932456,1744593039705,-500.0,0.00019726,2]
[357932457,1744593039719,-500.0,0.00019726,2]
[357932458,1744593039728,-500.0,0.00019726,2]
[357932459,1744593039739,-500.0,0.00019726,2]
[357932460,1744593039749,-500.0,0.00019726,2]
[357932461,1744593039758,-329.81,0.00019726,2]
[357932462,1744593039767,-500.0,0.00019726,2]
[357932463,1744593039777,-500.0,0.00019726,2]
[357932464,1744593039786,-593.46,0.00019726,2]
[357932465,1744593039795,-576.15,0.00019726,2]
[357932466,1744593039805,-500.0,0.00019726,2]
[357932467,1744593039815,-500.0,0.00019726,2]
[357932468,1744593039825,-192.93,0.00019726,2]
[357932469,1744593039835,-577.78,0.00019726,2]
[357932470,1744593039845,-500.0,0.00019726,2]
[357932471,1744593039854,-410.07,0.00019726,2]
[357932472,1744593039864,-500.0,0.00019726,2]
[357932473,1744593039875,-590.22,0.00019726,2]
[357932474,1744593039884,-3998.24003996,0.00019764,2]
[357932475,1744593039894,-2200.97569995,0.00019767,2]
[357932476,1744593039903,-2200.97569995,0.00019773,2]
[357932477,1744593039913,-2200.97569995,0.00019776,2]
[357932478,1744593039922,-1000.0,0.000198,2]
[357932479,1744593039932,-197.15237643,0.000198,2]
[357932480,1744593039942,-152.0,0.00019841,2]
[357932481,1744593039951,-3963.0,0.00019841,2]
[357932482,1744593039960,-197.15237643,0.0001985,2]
[357932483,1744593039969,-500.0,0.00019863,2]
[357932484,1744593039984,-500.0,0.00019863,2]
[357932485,1744593040005,-500.0,0.00019863,2]
[357932486,1744593040023,-500.0,0.00019863,2]
[357932488,1744593040035,-500.0,0.00019863,2]
[357932490,1744593040045,-500.0,0.00019863,2]
[357932492,1744593040057,-500.0,0.00019863,2]
[357932494,1744593040078,-500.0,0.00019863,2]
[357932496,1744593040098,-500.0,0.00019863,2]
[357932498,1744593040108,-313.52584541,0.00019863,2]
[357932500,1744593040117,-500.0,0.00019863,2]
[357932502,1744593040128,-226.6896,0.00019886,2]
[357932504,1744593040138,-2500.0,0.00019886,2]
[357932506,1744593040147,-183.0,0.000199,2]
[357932508,1744593040156,-183.0,0.000199,2]
[357932509,1744593040165,-183.0,0.000199,2]
[357932510,1744593040175,-183.07,0.000199,2]
[357932511,1744593040186,-189.29328165,0.000199,2]
[357932512,1744593040195,-5000.0,0.000199,2]
[357932513,1744593040205,-3142.87197339,0.000199,2]
[357932514,1744593040215,-32170.27136777,0.000199,2]
[357932515,1744593040225,-174.47427324,0.000199,2]
[357932516,1744593040235,-197.15237643,0.000199,2]
[357932517,1744593040245,-189.99018858,0.000199,2]
[357932518,1744593040255,-669.50083008,0.000199,2]
[357932519,1744593040265,-775.604,0.00019918,2]
[357932520,1744593040275,-194.764924,0.00019918,2]
[357932521,1744593040285,-161.22,0.00019949,2]
[357932522,1744593040295,-500.0,0.00019973,2]
[357932523,1744593040305,-821.8448717,0.00019986,2]
[357932524,1744593040315,-1110.5277906,0.00019986,2]
[357932525,1744593040325,-25920.3238946,0.00019986,2]
[357932526,1744593040335,-192.42048528,0.0001999,2]
[357932527,1744593040345,-283.449,0.00019999,2]
[357932528,1744593040354,-150.0,0.00019999,2]
[357932529,1744593040364,-150.0,0.00019999,2]
[357932530,1744593040385,-1327.0,0.00019999,2]
[357932531,1744593040406,-2046.0,0.00019999,2]
[357932532,1744593040417,-1287.0,0.00019999,2]
[357932533,1744593040427,-791.0,0.00019999,2]
[357932534,1744593040436,-907.0,0.00019999,2]
[357932535,1744593040448,-545.0,0.00019999,2]
[357932536,1744593040458,-1438.0,0.00019999,2]
[357932537,1744593040467,-1279.0,0.00019999,2]
[357932538,1744593040477,-4147.0,0.00019999,2]
[357932539,1744593040487,-575.0,0.00019999,2]
[357932540,1744593040498,-526.0,0.0002,2]
[357932541,1744593040507,-20548.99490738,0.0002,2]
[357932542,1744593040517,-170697.38226512,0.0002,2]
[357932543,1744593040530,-3350.67777773,0.0002,2]
[357932544,1744593040542,-65095.04666587,0.0002,2]
[357932545,1744593040553,-25669.26104217,0.0002,2]
[357932546,1744593040566,-1375.4138,0.0002,2]
[357932547,1744593040578,-1011.06427204,0.0002,2]
[357932548,1744593040595,-843.9095772,0.0002,2]
[357932549,1744593040608,-259.98789853,0.0002,2]
[357932551,1744593042525,-37573.18358304,0.0002,2]
[357932552,1744593045778,-240.20427606,0.000199,2]
[357932553,1744593045788,-5785.09288011,0.0002,2]
[357932555,1744593167270,1082.21,0.00017062,2]
[357932556,1744593651209,300.0,0.00019,6]
[357932557,1744593653455,600.0,0.000191,6]
[357932558,1744593655386,1000.0,0.000192,7]
[357932559,1744593657462,1300.0,0.000193,7]
[357932560,1744593659598,1600.0,0.000194,7]
[357932561,1744593661684,300.0,0.000195,7]
[357932562,1744593663769,300.0,0.000196,7]
[357932563,1744593665853,300.0,0.000197,7]
[357932564,1744593667940,300.0,0.000198,7]
[357932565,1744593670015,700.0,0.000199,7]
[357932566,1744594184216,400.0,0.0002,7]
[357932571,1744594203023,2000.0,0.0002,4]
[357932572,1744594225992,2000.0,0.0002,7]
[357932574,1744594231769,152.21718,0.000199,7]
[357932575,1744594231838,-804.91,0.00018693,2]
[357932576,1744594231858,-1000.0,0.00018707,2]
[357932577,1744594231868,-161.23,0.00018796,2]
[357932578,1744594231877,-250.0,0.00018825,2]
[357932579,1744594231887,-176.54,0.00018827,2]
[357932580,1744594231897,-1657.49,0.00018828,2]
[357932581,1744594231906,-250.0,0.00019,2]
[357932582,1744594231916,-250.0,0.00019,2]
[357932583,1744594231927,-300.0,0.00019099,2]
[357932584,1744594231936,-7655.01626023,0.000191,2]
[357932585,1744594231956,-424.91916695,0.000191,2]
[357932586,1744594231967,-710.47223809,0.000191,2]
[357932587,1744594231979,-1788.64782595,0.000191,2]
[357932588,1744594231989,-173.761438,0.00019167,2]
[357932589,1744594231998,-207.4,0.00019167,2]
[357932590,1744594232008,-176.68100789,0.00019177,2]
[357932591,1744594232017,-590.22,0.00019178,2]
[357932592,1744594232027,-500.0,0.00019178,2]
[357932593,1744594232037,-1923.24,0.00019178,2]
[357932594,1744594232046,-500.0,0.00019178,2]
[357932595,1744594232056,-525.90849367,0.00019178,2]
[357932596,1744594232066,-500.0,0.00019178,2]
[357932597,1744594232076,-500.0,0.00019178,2]
[357932598,1744594232086,-583.1,0.00019178,2]
[357932599,1744594232096,-500.0,0.00019178,2]
[357932601,1744594232105,-512.20708548,0.00019178,2]
[357932603,1744594232114,-2000.0,0.00019178,2]
[357932605,1744594232123,-500.0,0.00019178,2]
[357932607,1744594232132,-526.64292412,0.00019178,2]
[357932609,1744594232141,-335.60428931,0.00019178,2]
[357932611,1744594232152,-169.04049305,0.00019178,2]
[357932613,1744594232162,-517.78994641,0.00019178,2]
[357932615,1744594232171,-500.0,0.00019178,2]
[357932617,1744594232181,-500.0,0.00019178,2]
[357932619,1744594232191,-178.62773375,0.00019178,2]
[357932621,1744594232203,-445.24226625,0.00019178,2]
[357932623,1744594232212,-500.0,0.00019178,2]
[357932624,1744594232222,-500.0,0.00019178,2]
[357932626,1744594232231,-520.28604065,0.00019178,2]
[357932628,1744594232240,-508.8032837,0.00019178,2]
[357932630,1744594232249,-500.0,0.00019178,2]
[357932632,1744594232259,-506.65668557,0.00019178,2]
[357932634,1744594232269,-500.0,0.00019178,2]
[357932637,1744594232280,-501.37431002,0.00019178,2]
[357932640,1744594232289,-643.29,0.00019178,2]
[357932643,1744594232299,-474.34741381,0.00019178,2]
[357932653,1744594237752,-128.91258619,0.00019178,2]
[357932654,1744594237763,-344.91930785,0.00019178,2]
[357932655,1744594237942,-162.39069215,0.00019178,2]
[357932656,1744594237952,-500.0,0.00019178,2]
[357932657,1744594237962,-500.0,0.00019178,2]
[357932658,1744594237972,-2314.20930785,0.00019178,2]
[357932659,1744594237984,-764.82069215,0.00019178,2]
[357932660,1744594237995,-500.0,0.00019178,2]
[357932661,1744594238006,-255.17930785,0.00019178,2]
[357932662,1744594238055,-74.63069215,0.00019178,2]
[357932663,1744594238065,-489.30986717,0.00019178,2]
[357932664,1744594238077,-104.15013283,0.00019178,2]
[357932665,1744594238085,-500.0,0.00019178,2]
[357932666,1744594238096,-500.0,0.00019178,2]
[357932667,1744594238106,-500.0,0.00019178,2]
[357932668,1744594238117,-500.0,0.00019178,2]
[357932669,1744594238127,-500.0,0.00019178,2]
[357932670,1744594238136,-500.0,0.00019178,2]
[357932671,1744594238146,-500.0,0.00019178,2]
[357932672,1744594238155,-576.15,0.00019178,2]
[357932673,1744594238165,-500.0,0.00019178,2]
[357932674,1744594238175,-500.0,0.00019178,2]
[357932675,1744594238191,-629.33,0.00019178,2]
[357932676,1744594238201,-192.93,0.00019178,2]
[357932677,1744594238212,-500.0,0.00019178,2]
[357932678,1744594238222,-180.83352468,0.00019178,2]
[357932679,1744594238231,-257.8778683,0.00019178,2]
[357932680,1744594238241,-184.30227199,0.00019178,2]
[357932681,1744594238251,-451.69207563,0.00019178,2]
[357932682,1744594238260,-163.07650397,0.00019178,2]
[357932683,1744594238270,-296.92143703,0.00019178,2]
[357932684,1744594238280,-293.41529916,0.00019178,2]
[357932685,1744594238289,-500.0,0.00019178,2]
[357932686,1744594238299,-38676.01573823,0.00019178,2]
[357932688,1744594238309,-175.39222158,0.00019178,2]
[357932690,1744594238319,-164.26189,0.00019399,2]
[357932691,1744594238328,-500.0,0.00019452,2]
[357932692,1744594238338,-1923.24,0.00019452,2]
[357932693,1744594238347,-272.52,0.00019452,2]
[357932694,1744594238356,-169.06,0.00019452,2]
[357932695,1744594238366,-405.43,0.00019452,2]
[357932697,1744594238375,-500.0,0.00019452,2]
[357932698,1744594238384,-649.16,0.00019452,2]
[357932699,1744594238394,-303.9983,0.00019452,2]
[357932700,1744594238403,-3079.03,0.00019452,2]
[357932701,1744594238414,-500.0,0.00019452,2]
[357932702,1744594238424,-498.65,0.00019452,2]
[357932703,1744594238436,-500.0,0.00019452,2]
[357932704,1744594238445,-500.0,0.00019452,2]
[357932705,1744594238455,-500.0,0.00019452,2]
[357932706,1744594238464,-500.0,0.00019452,2]
[357932707,1744594238474,-500.0,0.00019452,2]
[357932708,1744594238484,-500.0,0.00019452,2]
[357932710,1744594238493,-643.084,0.00019452,2]
[357932712,1744594238504,-500.0,0.00019452,2]
[357932714,1744594238513,-629.33,0.00019452,2]
[357932715,1744594238523,-639.06373483,0.00019452,2]
[357932717,1744594238533,-380.23340109,0.00019452,2]
[357932719,1744594238543,-638.3250817,0.00019692,2]
[357932720,1744594238552,-638.3250817,0.00019693,2]
[357932721,1744594238561,-948.62568005,0.00019693,2]
[357932722,1744594238571,-719.68320728,0.00019702,2]
[357932723,1744594238580,-473.76964157,0.00019711,2]
[357932724,1744594238591,-524.39113518,0.00019711,2]
[357932725,1744594238603,-190.3661013,0.00019711,2]
[357932726,1744594238613,-470.85118135,0.00019717,2]
[357932727,1744594238625,-735.0921918,0.00019717,2]
[357932728,1744594238641,-448.13726371,0.00019717,2]
[357932729,1744594239107,-165.15889221,0.00019717,2]
[357932730,1744594239131,-34.84110779,0.00019722,2]
[357932731,1744594239978,-290.27959994,0.00019722,2]
[357932732,1744594240082,-1494.11882134,0.00019722,2]
[357932733,1744594240092,-567.31,0.00019726,2]
[357932734,1744594240104,-1923.24,0.00019726,2]
[357932735,1744594240119,-500.0,0.00019726,2]
[357932736,1744594240129,-3079.03,0.00019726,2]